bitfinex-derivatives/quotes_ETHF0:USTF0_20251012
["timestamp","ask_amount","ask_price","bid_price","bid_amount"]
[1760243080968,0.4316,3816.8,3815.8,0.0843]
[1760243081174,0.4316,3816.9,3816.8,0.47114]
[1760243081363,0.93875237,3817.2,3817.0,0.47112]
[1760243081563,1.34205237,3817.7,3817.3,0.47108]
[1760243081767,0.4033,3817.4,3817.3,0.47108]
[1760243081966,0.4033,3817.8,3817.3,0.55778]
[1760243082171,0.4033,3817.4,3817.3,0.47108]
[1760243083269,0.4033,3817.4,3817.2,0.47108]
[1760243083473,0.4033,3817.2,3817.0,0.4731293]
[1760243083770,0.93875237,3817.1,3817.0,0.4731293]
[1760243084072,1.34205237,3817.1,3817.0,0.4731293]
[1760243085567,6.34205237,3817.1,3817.0,0.0020193]
[1760243085872,5.4033,3817.1,3817.0,0.0020193]
[1760243086271,6.34297317,3817.1,3817.0,0.0020193]
[1760243086773,6.98602465,3817.1,3817.0,0.0020193]
[1760243087666,1.98602465,3817.1,3817.0,0.0020193]
[1760243087872,1.04635148,3817.1,3817.0,0.0020193]
[1760243092976,0.64305148,3817.1,3817.0,0.0020193]
[1760243093173,1.04635148,3817.1,3817.0,0.0020193]
[1760243094274,0.4033,3817.1,3817.0,0.0020193]
[1760243097375,0.4033,3817.1,3817.0,0.2794193]
[1760243097975,0.6881,3817.1,3817.0,0.2794193]
[1760243098580,0.4033,3817.1,3817.0,0.2794193]
[1760243098880,0.9631,3817.1,3817.0,0.1407193]
[1760243099671,0.9631,3817.1,3817.0,0.0020193]
[1760243100073,0.9631,3817.1,3817.0,0.1407193]
[1760243101385,0.4033,3817.1,3817.0,0.2794193]
[1760243101888,0.4033,3817.9,3817.8,0.74842]
[1760243102090,0.6881,3817.9,3817.8,0.74842]
[1760243102583,0.9631,3817.9,3817.8,0.74842]
[1760243102984,0.9631,3817.9,3817.8,0.60972]
[1760243103286,0.9631,3817.1,3817.0,0.6118393]
[1760243103583,0.4033,3817.1,3817.0,0.4731393]
[1760243104491,0.1584,3817.5,3817.4,0.47107]
[1760243104492,0.5479,3817.5,3817.4,0.47107]
[1760243105486,0.5479,3817.5,3817.2,0.47109]
[1760243105785,0.63864632,3817.4,3817.0,0.0020193]
[1760243105984,1.02814632,3817.3,3817.0,0.0020193]
[1760243106183,0.3895,3817.3,3817.0,0.0020193]
[1760243106786,0.3895,3817.3,3816.6,0.47116]
[1760243106787,0.3895,3816.9,3816.6,0.47116]
[1760243107793,0.1563,3816.5,3816.4,0.47119]
[1760243107987,0.5458,3816.5,3816.4,0.47433597]
[1760243109683,0.5458,3816.5,3816.4,0.71793597]
[1760243109883,0.8114,3816.5,3816.4,0.71793597]
[1760243110887,1.0729,3816.5,3816.4,0.47433597]
[1760243111192,1.0729,3816.5,3816.4,0.59613597]
[1760243112186,0.1563,3817.0,3816.4,0.59613597]
[1760243112187,0.4219,3817.0,3816.9,0.59293]
[1760243112692,1.71207783,3817.0,3816.9,0.59293]
[1760243112992,1.7120779,3817.0,3816.9,0.59293]
[1760243113686,0.5458,3817.0,3816.9,0.71473]
[1760243114693,0.8135,3817.5,3817.4,0.71467]
[1760243114890,1.45268263,3817.5,3817.4,0.71467]
[1760243115089,1.71418263,3817.5,3817.4,0.47107]
[1760243115792,0.1666,3818.0,3817.8,0.71462]
[1760243115990,0.5458,3819.0,3818.5,0.2427]
[1760243116192,0.3895,3818.9,3818.8,0.47089]
[1760243116393,10.0075,3819.4,3819.3,0.47083]
[1760243116993,10.00941877,3819.4,3819.3,0.47417821]
[1760243118999,9.61991877,3819.4,3819.3,0.86157821]
[1760243119209,0.00191877,3819.4,3819.3,5.86157821]
[1760243120295,0.3895,3820.4,3820.3,0.47071]
[1760243120499,0.1563,3821.0,3820.9,0.47064]
[1760243121000,0.5458,3821.0,3820.9,0.47064]
[1760243121197,0.54807868,3821.0,3820.9,0.47064]
[1760243121502,0.00227868,3821.0,3820.9,0.85804]
[1760243123598,0.54807868,3821.0,3820.9,0.47064]
[1760243126207,0.00227868,3821.0,3820.9,0.85804]
[1760243129404,0.00227868,3821.0,3820.9,5.85804]
[1760243129802,0.5458,3822.0,3821.8,0.47053]
[1760243130007,0.3895,3822.0,3821.9,0.3874]
[1760243130393,0.1563,3822.5,3821.6,0.3874]
[1760243130700,0.1563,3822.0,3821.9,0.47051]
[1760243130901,0.5458,3822.0,3821.9,0.47051]
[1760243133602,0.5458,3822.0,3821.0,0.3874]
[1760243133810,0.4037,3821.9,3820.5,0.3922]
[1760243134914,0.4037,3820.9,3820.8,0.47064]
[1760243135202,0.4037,3820.9,3820.7,0.47065]
[1760243135404,0.87434,3820.9,3820.0,0.3922]
[1760243135707,0.4037,3820.9,3820.0,0.47075]
[1760243135899,0.4037,3820.4,3820.0,0.47074]
[1760243136095,0.1541,3820.0,3819.8,0.47076]
[1760243136305,0.4037,3819.9,3819.2,0.3922]
[1760243136804,0.4037,3819.4,3819.2,0.47084]
[1760243137004,0.40558869,3819.4,3819.2,0.47084]
[1760243137710,0.40558869,3819.4,3819.1,0.47085]
[1760243137905,0.40558869,3819.4,3819.2,0.47084]
[1760243139203,0.40558869,3819.4,3818.2,0.3922]
[1760243139403,5.40558869,3819.4,3818.2,0.3922]
[1760243139606,0.4037,3818.9,3817.6,0.3922]
[1760243139812,0.5578,3819.0,3817.6,2.35521]
[1760243140108,0.4037,3819.3,3818.9,0.86307]
[1760243140306,0.4037,3819.3,3818.8,0.47089]
[1760243140499,0.4037,3818.9,3818.8,0.474263]
[1760243140803,0.4037,3819.3,3819.2,0.47083]
[1760243141713,0.4037,3819.3,3818.8,0.474263]
[1760243141912,0.415,3818.9,3818.8,0.003373]
[1760243142605,0.00188869,3819.4,3819.0,0.47086]
[1760243142805,0.00188869,3819.4,3818.8,0.391873]
[1760243142806,0.415,3819.3,3818.8,0.391873]
[1760243143109,0.415,3819.3,3819.2,0.47085]
[1760243145008,0.1642,3819.0,3818.8,0.474263]
[1760243145205,0.415,3818.9,3818.8,0.474263]
[1760243146410,0.415,3818.9,3818.8,0.003373]
[1760243146704,5.415,3818.9,3818.8,0.003373]
[1760243147808,0.415,3818.9,3818.8,0.003373]
[1760243148106,5.415,3818.9,3818.8,0.003373]
[1760243148306,6.03955246,3818.9,3818.8,0.003373]
[1760243148508,0.5792,3818.0,3817.5,0.47105]
[1760243148903,1.05019,3818.0,3817.5,0.47105]
[1760243149303,0.1642,3817.5,3817.3,0.47108]
[1760243149612,0.415,3817.4,3817.3,0.47406733]
[1760243149812,0.415,3817.4,3817.3,0.00298733]
[1760243151807,5.415,3817.4,3817.3,0.00298733]
[1760243152111,0.5792,3816.5,3816.4,0.47118]
[1760243153006,0.58161013,3816.5,3816.4,0.47399178]
[1760243153411,0.58161013,3816.5,3816.4,0.00281178]
[1760243153614,0.58161013,3816.5,3816.4,0.47400178]
[1760243154113,0.41741013,3816.5,3816.4,0.47400178]
[1760243156614,0.00241013,3816.5,3816.4,5.86590178]
[1760243157008,0.00241013,3816.5,3816.4,0.00281178]
[1760243157009,0.58161013,3816.5,3816.4,0.00281178]
[1760243157911,0.58161013,3816.5,3816.4,0.47400178]
[1760243159505,0.58161013,3816.5,3816.4,0.00281178]
[1760243159710,0.88626,3815.9,3814.6,0.3919]
[1760243159909,0.1642,3816.0,3814.6,0.3919]
[1760243159910,0.415,3815.4,3815.0,0.47136]
[1760243160111,0.415,3815.4,3814.6,0.3919]
[1760243160507,0.1642,3815.5,3814.1,0.3919]
[1760243160712,0.1642,3815.0,3814.8,0.47138]
[1760243160913,0.415,3814.9,3814.8,0.47138]
[1760243161612,0.415,3814.4,3814.2,0.47146]
[1760243161915,0.415,3814.4,3814.3,0.47144]
[1760243162513,0.415,3814.4,3814.1,0.00335929]
[1760243162514,0.415,3814.4,3814.2,0.47145]
[1760243162715,0.1642,3814.5,3814.2,0.47145]
[1760243162913,0.415,3814.4,3814.2,0.47145]
[1760243163516,0.1642,3814.5,3814.2,0.47145]
[1760243163818,0.4032,3814.4,3814.3,0.47144]
[1760243164418,0.4032,3814.4,3814.1,0.00335929]
[1760243166317,0.4032,3814.4,3814.2,0.47145]
[1760243166519,0.1642,3814.5,3814.4,0.47144]
[1760243166910,0.5674,3814.5,3814.2,0.47146]
[1760243167116,0.5674,3814.5,3814.1,0.00335929]
[1760243167418,0.1583,3814.0,3813.6,0.47154]
[1760243167616,0.4032,3813.9,3813.6,0.47154]
[1760243168119,0.4032,3813.9,3813.8,0.47151]
[1760243168318,0.4032,3813.9,3813.8,0.00328307]
[1760243170718,0.4032,3813.9,3813.8,0.38488307]
[1760243171524,0.4032,3813.9,3813.8,0.00328307]
[1760243171821,5.4032,3813.9,3813.8,0.00328307]
[1760243172214,0.4032,3813.9,3813.8,0.00328307]
[1760243175822,0.4032,3813.9,3812.7,0.3816]
[1760243176030,0.4032,3813.4,3813.2,0.47157]
[1760243176329,0.1583,3813.5,3813.2,0.47157]
[1760243176522,0.1583,3813.0,3812.9,0.4716]
[1760243176720,0.5615,3813.0,3812.9,0.4716]
[1760243177023,0.56339262,3813.0,3812.9,0.00225418]
[1760243178426,1.18514462,3813.0,3812.9,0.00225418]
[1760243178928,1.18514462,3813.0,3812.9,0.47386418]
[1760243179729,1.18514462,3813.0,3812.9,0.00225418]
[1760243182329,1.18514462,3813.0,3811.5,0.4649]
[1760243182330,0.4032,3812.4,3811.5,0.4649]
[1760243182731,0.4032,3812.4,3812.2,0.47169]
[1760243182929,0.5615,3812.5,3812.4,0.47167]
[1760243183232,0.5615,3812.5,3812.4,0.47432656]
[1760243184826,1.1129,3812.5,3812.4,0.47432656]
[1760243185026,1.1129,3812.5,3812.4,0.00265656]
[1760243186334,1.73644032,3812.5,3812.4,0.00265656]
[1760243189737,2.67611349,3812.5,3812.4,0.00265656]
[1760243190941,6.73644032,3812.5,3811.3,0.3816]
[1760243191141,0.437,3811.5,3811.4,1.0007]
[1760243191445,0.78184032,3811.5,3811.4,1.0007]
[1760243191642,1.46374032,3811.5,3811.4,1.0007]
[1760243192248,1.46374032,3811.5,3811.4,1.00372746]
[1760243193048,1.73644032,3811.5,3811.4,1.00372746]
[1760243193240,1.73644032,3811.5,3811.4,0.00302746]
[1760243193642,1.73644032,3811.5,3811.4,0.27792746]
[1760243193844,1.73644032,3811.5,3811.4,0.54812746]
[1760243194146,1.73644032,3811.5,3811.4,0.00302746]
[1760243194738,1.73644032,3811.5,3811.4,0.26222746]
[1760243196744,1.73644032,3811.5,3811.4,0.00302746]
[1760243197247,0.62354032,3811.5,3811.4,0.90032746]
[1760243197441,1.27554032,3811.5,3811.4,0.90032746]
[1760243197745,1.43972818,3811.5,3811.4,0.53242746]
[1760243197946,1.70112818,3811.5,3811.4,0.53242746]
[1760243198348,1.01372818,3811.5,3811.4,0.90032746]
[1760243198539,0.3861,3811.5,3811.4,0.90032746]
[1760243198942,0.8121,3811.5,3811.4,0.53242746]
[1760243199147,0.8121,3811.5,3811.4,0.90032746]
[1760243199844,1.0735,3811.5,3811.4,0.53242746]
[1760243204252,0.5462,3811.5,3811.4,0.53242746]
[1760243204555,0.3861,3811.5,3811.4,0.89622746]
[1760243204755,0.6407,3811.5,3811.4,0.89622746]
[1760243205054,0.8025,3811.5,3811.4,0.89622746]
[1760243205551,0.8025,3811.5,3811.4,0.53242746]
[1760243206558,0.8025,3811.5,3811.4,0.89622746]
[1760243206861,0.3827,3812.1,3812.0,0.6126]
[1760243207057,0.3827,3812.1,3812.0,0.8853]
[1760243207252,1.01189164,3812.1,3812.0,0.8853]
[1760243207456,0.93789492,3812.8,3812.0,5.6011]
[1760243207660,1.55432649,3813.0,3812.0,5.6011]
[1760243207661,0.00189262,3813.0,3812.9,1.35691]
[1760243207853,0.63919262,3813.0,3812.9,1.35691]
[1760243208754,0.63919262,3813.0,3812.8,0.47162]
[1760243208755,0.68269262,3813.0,3812.8,0.47162]
[1760243208967,0.00189262,3813.0,3812.9,0.8853]
[1760243209462,0.9017,3812.9,3812.8,0.74433]
[1760243209765,0.9017,3812.9,3812.8,0.47163]
[1760243210264,0.9017,3812.9,3812.7,0.47164]
[1760243210656,0.1618,3812.5,3811.5,0.0833]
[1760243210855,0.519,3812.2,3812.1,0.2727]
[1760243211054,0.519,3812.2,3812.1,0.5215]
[1760243211254,0.9017,3812.2,3812.1,0.5215]
[1760243211857,0.9017,3812.2,3811.9,0.47173]
[1760243212062,1.0635,3812.0,3811.9,0.47174]
[1760243212455,1.0635,3812.0,3811.4,0.00302746]
[1760243212662,1.0635,3811.5,3811.4,0.00302746]
[1760243213962,1.53529,3811.5,3811.4,0.00302746]
[1760243214161,1.0635,3811.5,3811.4,0.00302746]
[1760243216668,0.7991,3811.5,3811.4,0.00302746]
[1760243216861,0.7991,3811.5,3811.4,0.52452746]
[1760243217166,1.0635,3811.5,3811.4,0.00302746]
[1760243219265,0.3827,3811.5,3811.4,0.88832746]
[1760243220266,0.7991,3811.5,3811.4,0.52452746]
[1760243220569,1.0635,3811.5,3811.4,0.52452746]
[1760243220767,1.0635,3811.5,3811.4,0.00302746]
[1760243221774,1.0635,3811.5,3811.4,0.99632746]
[1760243222071,0.7991,3811.5,3811.4,0.99632746]
[1760243222469,0.6373,3811.5,3811.4,1.36012746]
[1760243222768,0.7991,3811.5,3811.4,0.99632746]
[1760243222967,0.7991,3811.5,3811.4,1.36012746]
[1760243223164,0.7991,3811.5,3811.4,0.99632746]
[1760243223965,1.0635,3811.5,3811.4,0.74752746]
[1760243224466,0.5318,3811.5,3811.4,1.37852746]
[1760243224664,0.7801,3811.5,3811.4,1.01902746]
[1760243224872,1.0271,3811.5,3811.4,1.01902746]
[1760243225071,0.3827,3811.5,3811.4,1.37852746]
[1760243225274,0.1618,3812.0,3811.9,0.74044]
[1760243225275,0.7889,3812.0,3811.9,0.74044]
[1760243225475,1.0359,3812.0,3811.9,0.74044]
[1760243225973,1.0359,3812.0,3811.9,0.47174]
[1760243227274,1.0359,3812.0,3811.4,0.36252746]
[1760243227275,0.7889,3812.5,3812.4,1.01187]
[1760243227465,0.5406,3812.5,3812.4,1.01187]
[1760243227769,0.16369262,3813.0,3812.9,0.74031]
[1760243227770,1.03779262,3813.0,3812.9,0.74031]
[1760243228274,1.02509262,3813.0,3812.9,1.01181]
[1760243228667,0.38069262,3813.0,3812.9,1.37131]
[1760243228874,0.00189262,3813.0,3812.9,1.37131]
[1760243229071,1.02509262,3813.0,3812.9,0.74031]
[1760243229471,0.38069262,3813.0,3812.9,1.37131]
[1760243229668,0.00189262,3813.0,3812.9,1.37131]
[1760243233262,0.00189262,3813.0,3811.7,1.85171353]
[1760243233263,1.02509262,3813.0,3812.1,0.3595]
[1760243233466,1.02509262,3813.0,3811.7,1.17939]
[1760243233467,0.00189262,3813.0,3812.9,1.37131]
[1760243234570,0.00189262,3813.0,3812.9,6.37131]
[1760243235173,0.8741,3813.9,3813.8,0.47149]
[1760243235375,0.8741,3813.9,3813.8,0.74019]
[1760243235674,0.8741,3813.9,3813.8,1.01169]
[1760243236068,0.87631478,3813.9,3813.8,1.01169]
[1760243236572,0.62931478,3813.9,3813.8,1.01169]
[1760243236780,0.87631478,3813.9,3813.6,0.47152]
[1760243236978,0.87631478,3813.9,3813.7,0.4715]
[1760243237479,0.1491,3813.5,3812.8,1.17906]
[1760243238078,0.3788,3813.4,3812.8,1.17906]
[1760243238279,0.8741,3813.4,3813.3,1.01176]
[1760243238479,0.87631478,3813.9,3813.8,0.7402]
[1760243240077,0.87631478,3813.9,3813.8,1.0117]
[1760243240482,0.62931478,3813.9,3813.8,1.0117]
[1760243240674,0.62931478,3813.9,3813.8,1.3712]
[1760243240877,0.62931478,3813.9,3813.8,1.0117]
[1760243241283,0.87631478,3813.9,3813.8,1.0117]
[1760243243082,0.38101478,3813.9,3813.8,1.0117]
[1760243243280,0.87631478,3813.9,3813.8,1.0117]
[1760243243483,0.87631478,3813.9,3813.7,0.4715]
[1760243244480,0.62931478,3813.9,3813.8,0.5402]
[1760243244782,0.00221478,3813.9,3813.8,0.8997]
[1760243245484,0.87631478,3813.9,3813.7,0.4715]
[1760243246178,0.87631478,3813.9,3813.8,0.2687]
[1760243247685,0.87631478,3813.9,3813.8,0.5402]
[1760243247882,0.38101478,3813.9,3813.8,0.5402]
[1760243248185,0.62931478,3813.9,3813.8,0.5402]
[1760243248986,0.87631478,3813.9,3813.8,0.5402]
[1760243249487,0.62931478,3813.9,3813.8,0.8997]
[1760243249687,0.00221478,3813.9,3813.8,0.8997]
[1760243250883,0.00221478,3813.9,3813.8,5.8997]
[1760243251488,0.62931478,3813.9,3813.8,0.8997]
[1760243251684,0.00221478,3813.9,3813.8,0.8997]
[1760243252586,0.62931478,3813.9,3813.8,0.5402]
[1760243252786,0.62931478,3813.9,3813.8,0.8997]
[1760243253085,0.00221478,3813.9,3813.8,0.8997]
[1760243253682,0.39251478,3813.9,3813.8,0.8997]
[1760243254685,0.00221478,3813.9,3813.8,0.8997]
[1760243255479,0.24311478,3813.9,3813.8,0.8997]
[1760243255686,0.88801478,3813.9,3813.8,0.5402]
[1760243256185,0.88801478,3813.9,3813.7,0.4715]
[1760243256883,0.88801478,3813.9,3813.8,0.2624]
[1760243257085,0.88801478,3813.9,3813.8,0.5048]
[1760243257285,0.39251478,3813.9,3813.8,0.8508]
[1760243257482,0.63341478,3813.9,3813.8,0.8508]
[1760243257687,0.88801478,3813.9,3813.8,0.5048]
[1760243258385,0.00221478,3813.9,3813.8,0.8508]
[1760243259687,0.88801478,3813.9,3813.8,0.2624]
[1760243259892,0.00221478,3813.9,3813.8,0.8508]
[1760243263196,0.65291478,3813.9,3813.8,0.8508]
[1760243264592,0.91101478,3813.9,3813.8,0.5048]
[1760243264995,0.91101478,3813.9,3813.7,0.4715]
[1760243265694,0.91101478,3813.9,3813.0,0.3425]
[1760243265695,0.9088,3812.8,3812.7,0.4874]
[1760243265895,0.1591,3813.0,3812.5,1.85171353]
[1760243265896,0.6507,3813.4,3813.3,0.4874]
[1760243266095,0.3958,3813.4,3813.3,0.8299]
[1760243266294,0.6507,3813.7,3813.6,0.4874]
[1760243266797,0.9088,3813.7,3813.6,0.95893]
[1760243266994,0.00221478,3813.9,3813.8,0.47151]
[1760243267198,1.27514589,3813.9,3813.8,1.30141]
[1760243267502,1.53328932,3813.9,3813.8,0.47151]
[1760243267694,1.53328932,3813.9,3813.8,0.71511]
[1760243268099,1.53328932,3813.9,3813.8,0.47151]
[1760243270096,6.53328932,3813.9,3812.7,1.17911]
[1760243270306,0.6507,3812.9,3812.8,0.95903]
[1760243270702,0.9088,3812.9,3812.8,0.71523]
[1760243271207,0.9088,3812.9,3812.8,0.95903]
[1760243272004,0.1591,3813.5,3813.4,0.47156]
[1760243272005,1.0679,3813.5,3813.4,0.47156]
[1760243272308,1.69003754,3813.5,3813.4,0.47156]
[1760243272505,1.69003754,3813.5,3813.2,0.47157]
[1760243272707,0.9088,3813.3,3813.2,0.47157]
[1760243273419,0.8098,3813.5,3813.4,1.30146]
[1760243274008,0.8098,3813.5,3813.4,0.95896]
[1760243277418,0.00221478,3813.9,3813.8,0.47151]
[1760243277615,0.25711478,3813.9,3813.8,0.95891]
[1760243277917,0.51521478,3813.9,3813.8,0.95891]
[1760243278121,0.91101478,3813.9,3813.8,0.95891]
[1760243279715,0.00221478,3813.9,3813.8,1.30141]
[1760243281622,0.00221478,3813.9,3813.8,6.30141]
[1760243282214,0.1591,3815.0,3813.8,6.30141]
[1760243282215,0.5549,3815.0,3813.8,6.30141]
[1760243282422,0.3958,3814.9,3814.8,0.95878]
[1760243282618,0.9088,3814.9,3814.8,0.95878]
[1760243283124,0.6507,3814.9,3814.8,0.95878]
[1760243283323,0.65399817,3814.9,3814.8,0.96155387]
[1760243283522,0.65399817,3814.9,3814.8,1.30175387]
[1760243283826,0.39909817,3814.9,3814.8,1.30175387]
[1760243284026,0.90259817,3814.9,3814.8,0.47415387]
[1760243284518,0.90259817,3814.9,3814.8,0.71165387]
[1760243284914,5.90259817,3814.9,3814.8,0.00277387]
[1760243285625,5.62348992,3814.9,3813.4,0.3306]
[1760243285926,0.7513,3814.0,3813.9,0.96528]
[1760243286217,0.5088,3814.0,3813.9,1.29588]
[1760243286424,0.3648,3814.5,3814.4,0.96522]
[1760243286628,0.3648,3814.5,3814.4,1.29833396]
[1760243287526,0.36809817,3814.9,3814.8,1.29577]
[1760243287830,0.61059817,3814.9,3814.8,0.96517]
[1760243288021,0.00329817,3814.9,3814.8,1.29577]
[1760243289228,0.24579817,3814.9,3814.8,0.96517]
[1760243289426,0.87159817,3814.9,3814.8,0.47137]
[1760243289728,0.87159817,3814.9,3814.8,0.70887]
[1760243289929,0.87159817,3814.9,3814.8,0.47137]
[1760243291030,0.87159817,3814.9,3814.8,0.96517]
[1760243291435,0.87159817,3814.9,3814.8,0.70887]
[1760243292124,0.36809817,3814.9,3814.8,1.29577]
[1760243292429,0.00329817,3814.9,3814.8,1.29577]
[1760243293828,0.87159817,3814.9,3814.8,0.96517]
[1760243294126,0.87159817,3814.9,3814.8,0.47137]
[1760243294830,1.0123,3814.5,3814.4,0.00251396]
[1760243295722,1.0123,3814.5,3814.4,0.49631396]
[1760243296023,0.3648,3814.5,3814.4,0.82691396]
[1760243296527,0.00329817,3814.9,3814.8,1.29577]
[1760243296827,0.24579817,3814.9,3814.8,0.96517]
[1760243297021,0.36809817,3814.9,3814.8,1.29577]
[1760243297229,0.00329817,3814.9,3814.8,1.29577]
[1760243298831,0.5088,3815.5,3815.4,1.2957]
[1760243299030,0.5088,3816.0,3815.9,0.4938]
[1760243299336,0.3648,3816.0,3815.9,0.8244]
[1760243299831,0.36754813,3816.0,3815.9,0.8244]
[1760243300429,0.00274813,3816.0,3815.9,0.8244]
[1760243300735,0.00274813,3816.0,3815.9,5.8244]
[1760243301234,0.6073,3816.8,3816.7,0.4938]
[1760243302233,0.87079657,3816.8,3816.7,0.47114]
[1760243302836,1.0123,3816.5,3816.4,0.47117]
[1760243303138,1.0123,3816.5,3815.2,1.17828]
[1760243303139,1.0123,3816.0,3815.9,0.2375]
[1760243303934,1.0123,3816.0,3815.9,0.70873]
[1760243304932,0.5035,3815.2,3815.1,0.2375]
[1760243305142,0.8683,3815.2,3815.1,0.70883]
[1760243305441,0.8683,3815.2,3815.1,0.4938]
[1760243306236,0.3648,3815.5,3815.4,0.4938]
[1760243306428,0.144,3816.0,3815.9,0.47123]
[1760243306628,0.7513,3816.0,3815.9,0.70873]
[1760243306833,1.0123,3816.0,3815.9,0.70873]
[1760243307033,0.6475,3816.0,3815.7,0.47126]
[1760243307229,0.8683,3815.8,3815.7,0.47126]
[1760243307431,0.8683,3815.8,3815.7,0.96506]
[1760243307740,0.6073,3815.8,3815.7,1.29566]
[1760243308733,0.3648,3815.8,3815.7,1.29566]
[1760243308943,0.6073,3815.8,3815.7,1.29566]
[1760243309137,0.6073,3815.8,3815.7,0.96506]
[1760243309830,0.8683,3815.8,3815.7,0.96506]
[1760243311342,0.6073,3815.8,3815.7,0.96506]
[1760243311743,0.8683,3815.8,3815.7,0.70876]
[1760243312144,0.8683,3815.8,3815.7,0.47126]
[1760243312542,0.8683,3815.4,3815.3,0.4713]
[1760243312938,0.3648,3815.4,3815.3,0.9651]
[1760243313144,0.144,3816.0,3815.7,0.70875]
[1760243313545,0.2425,3815.9,3815.8,0.70874]
[1760243313740,0.8572,3815.9,3815.8,0.70874]
[1760243314051,0.8572,3815.9,3815.8,0.47124]
[1760243315748,0.8572,3815.9,3814.9,1.1784]
[1760243315950,0.4772,3815.6,3815.5,0.47128]
[1760243316249,0.144,3816.0,3814.3,0.3176]
[1760243316250,0.857,3815.3,3814.3,0.3176]
[1760243316449,0.857,3815.3,3815.1,0.47132]
[1760243316952,0.4772,3815.3,3815.2,0.2348]
[1760243317341,0.4772,3815.3,3815.2,0.4758]
[1760243317546,0.6221,3815.3,3815.2,0.4758]
[1760243319248,0.857,3815.3,3815.2,0.4758]
[1760243319449,0.4772,3815.3,3815.2,0.2348]
[1760243319655,0.3798,3815.3,3815.2,0.7934]
[1760243321457,0.8679,3815.3,3815.2,0.4758]
[1760243323357,0.3798,3815.3,3815.2,0.79]
[1760243323649,0.8679,3815.3,3814.5,0.0555]
[1760243323857,1.0214,3814.5,3814.4,0.70593396]
[1760243324449,1.0214,3814.5,3814.4,0.93803396]
[1760243324659,1.0214,3814.5,3814.4,0.47393396]
[1760243324855,1.0214,3814.5,3814.4,0.00251396]
[1760243325256,0.1486,3815.0,3814.9,1.24966]
[1760243325257,0.3847,3815.0,3814.9,1.24966]
[1760243325448,1.0217,3815.5,3815.4,0.7033]
[1760243325756,1.0217,3815.5,3815.4,0.4713]
[1760243326457,1.0217,3815.5,3814.6,0.3142]
[1760243326659,0.4881,3815.3,3815.2,0.47131]
[1760243326958,0.8728,3815.3,3814.4,0.31671396]
[1760243327957,0.8728,3815.3,3815.0,0.47134]
[1760243328358,0.8728,3815.3,3815.1,0.47132]
[1760243332257,1.11054692,3815.2,3815.1,0.47132]
[1760243332462,1.49524692,3815.2,3815.1,0.47132]
[1760243333261,1.49524692,3815.2,3814.4,0.23451396]
[1760243333262,1.0214,3814.5,3814.4,0.23451396]
[1760243333453,1.0214,3814.5,3814.4,0.93803396]
[1760243333657,0.7756,3814.5,3814.4,0.93803396]
[1760243335062,1.0214,3814.5,3814.4,0.93803396]
[1760243335258,1.0214,3814.5,3814.4,0.47393396]
[1760243335954,0.5333,3814.5,3814.4,0.70593396]
[1760243336154,0.5333,3815.0,3814.9,0.232]
[1760243336461,0.5333,3815.0,3814.8,0.47137]
[1760243336462,1.64409668,3815.0,3814.8,0.47137]
[1760243336659,1.49549668,3814.9,3814.8,0.70337]
[1760243336963,1.49549668,3814.9,3814.8,0.47137]
[1760243337964,0.8728,3814.9,3814.8,0.93547]
[1760243338566,0.3847,3814.9,3814.8,1.24967]
[1760243338865,0.627,3814.9,3814.8,0.93547]
[1760243339256,0.93789492,3815.9,3815.0,1.17836]
[1760243339460,0.4881,3815.9,3815.8,0.70325]
[1760243339662,1.11063509,3815.9,3815.8,0.70325]
[1760243341263,1.49533509,3815.9,3815.8,0.47125]
[1760243341761,1.49533509,3815.9,3815.8,0.70325]
[1760243343167,1.49533509,3815.9,3815.8,0.47125]
[1760243344270,1.49533509,3815.9,3815.8,1.06815]
[1760243345165,1.11063509,3815.9,3815.8,1.30075]
[1760243346764,0.62253509,3815.9,3815.8,1.30075]
[1760243347065,0.37329657,3816.8,3816.7,0.5969]
[1760243347370,0.99581772,3816.8,3816.7,0.8295]
[1760243347560,1.48711772,3816.8,3816.7,0.8295]
[1760243348469,0.86459657,3816.8,3816.7,0.8295]
[1760243349573,0.00249657,3816.8,3816.7,0.8295]
[1760243350065,0.00249657,3816.8,3816.7,5.8295]
[1760243350369,0.00249657,3816.8,3816.7,0.8295]
[1760243350571,1.39413387,3818.4,3816.7,0.8295]
[1760243350572,0.8621,3818.1,3818.0,0.47098]
[1760243350870,1.48295618,3818.1,3818.0,0.47098]
[1760243351570,1.48489569,3818.1,3818.0,0.47345634]
[1760243351767,1.48489569,3818.1,3818.0,0.00247634]
[1760243352469,0.86403951,3818.1,3818.0,0.00247634]
[1760243352666,5.86403951,3818.1,3817.0,0.5042]
[1760243352867,0.2448,3817.3,3816.6,0.3548]
[1760243353068,0.4913,3817.1,3817.0,0.4711]
[1760243353373,0.8621,3817.1,3817.0,0.4711]
[1760243353666,0.8621,3817.1,3817.0,0.47331552]
[1760243354071,0.8621,3817.1,3817.0,0.00221552]
[1760243355271,0.8621,3817.1,3817.0,0.24431552]
[1760243355475,0.8621,3817.1,3817.0,0.59911552]
[1760243355873,0.8621,3817.1,3817.0,0.35701552]
[1760243356068,0.8621,3817.1,3817.0,0.00221552]
[1760243357873,1.33319,3817.1,3817.0,0.00221552]
[1760243358774,0.8621,3816.4,3816.3,0.47118]
[1760243359774,0.8621,3816.4,3816.3,0.47376148]
[1760243361179,0.8621,3816.4,3816.3,0.71586148]
[1760243361478,0.3708,3817.2,3816.9,0.82591]
[1760243361673,0.3708,3817.1,3817.0,0.5969]
[1760243361979,0.8621,3817.1,3817.0,0.5969]
[1760243362781,0.3708,3817.0,3816.9,0.47111]
[1760243362976,0.8621,3817.0,3816.9,0.47111]
[1760243363479,0.8621,3817.0,3816.9,1.30061]
[1760243363688,0.4913,3817.0,3816.9,1.30061]
[1760243364182,0.3708,3817.7,3817.1,0.3548]
[1760243364474,0.61983769,3817.6,3817.0,0.1494]